bitfinex/quotes_BTCUSD_20250219
["timestamp","ask_amount","ask_price","bid_price","bid_amount"]
[1739982981329,0.34763392,96481.0,96480.0,0.0974508]
[1739982982120,0.34763392,96481.0,96480.0,0.0984508]
[1739982983029,0.34763392,96481.0,96480.0,0.0844508]
[1739982983449,0.34763392,96481.0,96480.0,0.0028508]
[1739982984082,0.34763392,96481.0,96480.0,0.0018508]
[1739982984325,0.34763392,96481.0,96480.0,0.0008508]
[1739982985260,0.34863392,96481.0,96480.0,0.0008508]
[1739982985660,0.34763392,96481.0,96480.0,0.0008508]
[1739982986319,0.34863392,96481.0,96480.0,0.0008508]
[1739982987158,0.34763392,96481.0,96480.0,0.0008508]
[1739982987451,0.34763392,96481.0,96480.0,0.0018508]
[1739982987599,0.34763392,96481.0,96480.0,0.0008508]
[1739982987801,0.19216292,96481.0,96480.0,0.0158508]
[1739982987982,0.34763392,96481.0,96480.0,0.0939508]
[1739982994668,0.04216292,96481.0,96480.0,0.10974237]
[1739982995081,0.04216292,96481.0,96480.0,0.15514237]
[1739982995880,0.19763392,96481.0,96480.0,0.15514237]
[1739982996089,0.34763392,96481.0,96480.0,0.1393508]
[1739982996490,0.34763392,96481.0,96480.0,0.0028508]
[1739982997299,0.34763392,96481.0,96480.0,0.0008508]
[1739982997643,0.34763392,96481.0,96480.0,0.0018508]
[1739982998212,0.34763392,96481.0,96480.0,0.0008508]
[1739982998995,0.34805932,96481.0,96480.0,0.0008508]
[1739982999229,0.36887978,96481.0,96480.0,0.0008508]
[1739983000430,0.47138343,96481.0,96480.0,0.0008508]
[1739983001912,0.47138343,96481.0,96468.0,0.0465]
[1739983001913,0.57388708,96481.0,96468.0,0.0465]
[1739983002120,0.305506,96459.0,96452.0,0.0809]
[1739983002526,0.305506,96459.0,96458.0,0.00547121]
[1739983002735,0.32489714,96459.0,96458.0,0.000851]
[1739983003168,0.42740079,96459.0,96458.0,0.000851]
[1739983004684,1.23449279,96459.0,96458.0,0.000851]
[1739983004890,3.40873879,96459.0,96458.0,0.000851]
[1739983005011,3.31791679,96459.0,96458.0,0.000851]
[1739983005558,3.31891679,96459.0,96458.0,0.000851]
[1739983005766,3.33963425,96459.0,96458.0,0.000851]
[1739983005959,0.305517,96452.0,96451.0,0.0008508]
[1739983006306,0.40802065,96452.0,96451.0,0.0008508]
[1739983007109,0.42741179,96452.0,96451.0,0.0008508]
[1739983007445,0.305524,96448.0,96447.0,0.0008512]
[1739983007583,3.72927965,96448.0,96447.0,0.0008512]
[1739983007971,3.62761665,96448.0,96447.0,0.0008512]
[1739983008609,0.305553,96430.0,96429.0,0.0479]
[1739983009190,0.305553,96430.0,96429.0,0.05254686]
[1739983009438,0.305553,96430.0,96429.0,0.0479]
[1739983009618,0.305553,96430.0,96429.0,0.05254686]
[1739983009849,0.305553,96430.0,96429.0,0.0479]
[1739983010427,0.305553,96430.0,96429.0,0.0619]
[1739983010803,0.305553,96430.0,96429.0,0.06654686]
[1739983011000,0.33362897,96430.0,96429.0,0.06654686]
[1739983011580,0.33362897,96430.0,96429.0,0.05254686]
[1739983011918,0.33362897,96430.0,96429.0,0.05297236]
[1739983012125,0.35298541,96430.0,96429.0,0.0483255]
[1739983012699,0.35298541,96430.0,96429.0,0.05297236]
[1739983018570,0.35298541,96430.0,96429.0,0.06697236]
[1739983020313,0.04743241,96430.0,96429.0,0.16226393]
[1739983020550,0.01935644,96430.0,96429.0,0.24625356]
[1739983020755,0.01935644,96430.0,96429.0,0.24521663]
[1739983021174,0.305532,96443.0,96442.0,0.01579157]
[1739983021496,0.33410557,96443.0,96442.0,0.14209157]
[1739983021928,0.33410557,96443.0,96442.0,0.13085183]
[1739983022258,0.30554,96438.0,96437.0,0.014]
[1739983022836,0.305543,96436.0,96435.0,0.0826]
[1739983023043,0.305543,96436.0,96435.0,0.0966]
[1739983023241,0.305543,96436.0,96435.0,0.0826]
[1739983023612,0.155548,96433.0,96432.0,0.014]
[1739983023820,0.305548,96433.0,96432.0,0.014]
[1739983027148,0.32490644,96432.0,96431.0,0.0608]
[1739983028089,0.32490644,96432.0,96431.0,0.0618]
[1739983028502,0.32490644,96432.0,96431.0,0.0478]
[1739983028745,0.32490644,96432.0,96431.0,0.003]
[1739983029178,0.42741009,96432.0,96431.0,0.003]
[1739983029501,0.305553,96430.0,96429.0,0.0004255]
[1739983029698,2.79422165,96430.0,96429.0,0.0004255]
[1739983029941,1.37168665,96430.0,96429.0,0.0004255]
[1739983030116,0.305575,96416.0,96415.0,0.000851]
[1739983030270,0.40807865,96416.0,96415.0,0.000851]
[1739983031055,0.45847788,96416.0,96415.0,0.000851]
[1739983031261,0.51159416,96416.0,96415.0,0.000851]
[1739983031889,0.51159416,96416.0,96415.0,0.002851]
[1739983031890,0.48558817,96416.0,96415.0,0.002851]
[1739983032092,0.45847788,96416.0,96415.0,0.002851]
[1739983032581,0.35597423,96416.0,96415.0,0.002851]
[1739983032792,0.37650993,96416.0,96415.0,0.017851]
[1739983032998,0.35597423,96416.0,96415.0,0.11284257]
[1739983033249,0.35597423,96416.0,96415.0,0.11741922]
[1739983034004,0.35597423,96416.0,96415.0,0.11541922]
[1739983034209,0.305575,96416.0,96415.0,0.11541922]
[1739983034410,0.305575,96416.0,96415.0,0.11741922]
[1739983034739,0.305575,96416.0,96415.0,0.11641922]
[1739983034942,0.305575,96416.0,96415.0,0.08562765]
[1739983035143,0.305575,96416.0,96415.0,0.08762765]
[1739983035309,0.305575,96416.0,96415.0,0.08662765]
[1739983035734,0.305575,96416.0,96415.0,0.08762765]
[1739983036146,0.40807865,96416.0,96415.0,0.08762765]
[1739983036348,0.40807865,96416.0,96415.0,0.00842765]
[1739983036638,0.10250365,96416.0,96415.0,0.003851]
[1739983036859,0.25807865,96416.0,96415.0,0.003851]
[1739983037481,0.27433296,96416.0,96415.0,0.003851]
[1739983037649,0.27433296,96416.0,96415.0,0.000851]
[1739983038034,0.27833296,96416.0,96415.0,0.000851]
[1739983038960,0.44774588,96416.0,96415.0,0.000851]
[1739983040349,0.305603,96399.0,96398.0,0.0781]
[1739983040527,0.155612,96393.0,96392.0,0.0453]
[1739983042280,0.155612,96393.0,96392.0,0.0483]
[1739983042428,0.32186874,96393.0,96392.0,0.0453]
[1739983042634,0.34126739,96393.0,96392.0,0.0453]
[1739983042811,0.34126739,96393.0,96392.0,0.0483]
[1739983043265,0.36991663,96393.0,96392.0,0.0483]
[1739983043486,0.35365989,96393.0,96392.0,0.1265]
[1739983043780,0.35365989,96393.0,96392.0,0.1305]
[1739983045084,0.33426124,96393.0,96392.0,0.1305]
[1739983045288,0.35541269,96393.0,96392.0,0.1305]
[1739983045785,0.35541269,96393.0,96392.0,0.1445]
[1739983046420,0.37166958,96393.0,96392.0,0.1445]
[1739983047834,0.19490613,96393.0,96392.0,0.1449257]
[1739983048401,0.04490613,96393.0,96392.0,0.1449257]
[1739983048609,0.01625689,96393.0,96392.0,0.16071727]
[1739983048813,0.1564264,96416.0,96415.0,0.1385]
[1739983049283,0.17759028,96416.0,96415.0,0.1385]
[1739983049685,0.02201528,96416.0,96415.0,0.1385]
[1739983049834,0.03826901,96416.0,96415.0,0.1385]
[1739983050446,0.04549337,96416.0,96415.0,0.15429157]
[1739983050643,0.20106837,96416.0,96415.0,0.15429157]
[1739983050845,0.04549337,96416.0,96406.0,0.0761]
[1739983051023,0.30559,96407.0,96406.0,0.0761]
[1739983052408,0.30559,96407.0,96406.0,0.09289157]
[1739983052544,0.30559,96407.0,96406.0,0.10689157]
[1739983052749,0.30559,96407.0,96406.0,0.10589157]
[1739983052994,0.30559,96407.0,96406.0,0.09647649]
[1739983053151,0.30559,96407.0,96406.0,0.11047649]
[1739983053547,0.15,96407.0,96406.0,0.11047649]
[1739983053729,0.30559,96407.0,96406.0,0.11047649]
[1739983053933,0.32499078,96407.0,96406.0,0.11147649]
[1739983054132,0.32499078,96407.0,96406.0,0.10689157]
[1739983054338,0.16940078,96407.0,96406.0,0.10689157]
[1739983054758,0.01940078,96407.0,96406.0,0.15967649]
[1739983055165,0.17923964,96416.0,96415.0,0.01579157]
[1739983055390,0.17923964,96416.0,96415.0,0.11019157]
[1739983055619,0.17923964,96416.0,96415.0,0.15739157]
[1739983055765,0.17923964,96416.0,96415.0,0.16196822]
[1739983055966,0.33481464,96416.0,96415.0,0.16196822]
[1739983056199,0.33481464,96416.0,96415.0,0.15739157]
[1739983056390,0.33481464,96416.0,96415.0,0.14796822]
[1739983056602,0.33481464,96416.0,96415.0,0.1276]
[1739983056808,0.33481464,96416.0,96415.0,0.1416]
[1739983057017,0.35106819,96416.0,96415.0,0.16196822]
[1739983058043,0.37048467,96416.0,96415.0,0.16196822]
[1739983059506,0.37048467,96416.0,96415.0,0.14617665]
[1739983059706,0.37148467,96416.0,96415.0,0.14617665]
[1739983060149,0.37148467,96416.0,96415.0,0.16296822]
[1739983060519,0.47398832,96416.0,96415.0,0.00557665]
[1739983060926,0.47298832,96416.0,96415.0,0.001]
[1739983061130,0.47298832,96416.0,96415.0,0.002]
[1739983061324,0.47298832,96416.0,96415.0,0.001]
[1739983061753,0.305598,96402.0,96401.0,0.014]
[1739983062092,0.305598,96402.0,96401.0,0.01858952]
[1739983062281,0.305598,96402.0,96401.0,0.00458952]
[1739983062474,0.3218538,96402.0,96401.0,0.014]
[1739983063508,0.34127028,96402.0,96401.0,0.014]
[1739983063732,0.15,96401.0,96398.0,0.0004258]
[1739983063934,0.305603,96399.0,96398.0,0.0004258]
[1739983064135,3.26420065,96399.0,96398.0,0.0004258]
[1739983064309,2.91069965,96399.0,96398.0,0.0004258]
[1739983064654,2.45726865,96399.0,96398.0,0.0004258]
[1739983065698,2.45726865,96399.0,96398.0,0.0014258]
[1739983065818,2.47668513,96399.0,96398.0,0.0004258]
[1739983066020,2.47668513,96399.0,96398.0,0.0014258]
[1739983066433,2.47668513,96399.0,96398.0,0.0004258]
[1739983066837,1.52275013,96399.0,96398.0,0.0004258]
[1739983067684,1.52275013,96399.0,96398.0,0.0024258]
[1739983068089,1.52275013,96399.0,96398.0,0.0014258]
[1739983068090,0.96665213,96399.0,96398.0,0.0014258]
[1739983068423,0.85186729,96399.0,96398.0,0.0024258]
[1739983068582,0.85186729,96399.0,96398.0,0.0004258]
[1739983068903,0.85186729,96399.0,96398.0,0.0014258]
[1739983069061,0.85186729,96399.0,96398.0,0.0024258]
[1739983069406,0.85186729,96399.0,96398.0,0.0014258]
[1739983069614,0.85186729,96399.0,96398.0,0.0024258]
[1739983070190,0.85186729,96399.0,96398.0,0.0014258]
[1739983070394,0.85186729,96399.0,96398.0,0.0024258]
[1739983070751,0.85186729,96399.0,96398.0,0.0014258]
[1739983071052,1.98591029,96399.0,96398.0,0.0024258]
[1739983073027,0.305612,96393.0,96392.0,0.0004257]
[1739983073183,2.50125865,96393.0,96392.0,0.0004257]
[1739983073389,3.30393865,96393.0,96392.0,0.0004257]
[1739983073592,2.98679065,96393.0,96392.0,0.0004257]
[1739983074032,3.00620713,96393.0,96392.0,0.0004257]
[1739983074610,3.00620713,96393.0,96392.0,0.0014257]
[1739983074611,3.00720713,96393.0,96392.0,0.0014257]
[1739983075230,0.305632,96381.0,96380.0,0.014]
[1739983075450,0.305632,96381.0,96380.0,0.01860884]
[1739983075631,0.40813565,96381.0,96380.0,0.00460884]
[1739983075837,0.15,96380.0,96379.0,0.0798]
[1739983076215,0.305642,96375.0,96374.0,0.1271]
[1739983076750,0.32190139,96375.0,96374.0,0.1271]
[1739983077985,0.44382152,96375.0,96374.0,0.001]
[1739983079249,0.44382152,96375.0,96374.0,0.003]
[1739983079451,0.44382152,96375.0,96374.0,0.002]
[1739983079751,0.30565,96370.0,96369.0,0.01579157]
[1739983080381,0.305651,96369.0,96368.0,0.0786]
[1739983081078,0.32506748,96369.0,96368.0,0.0786]
[1739983081450,0.42757113,96369.0,96368.0,0.0786]
[1739983081632,0.27192013,96369.0,96365.0,0.0494]
[1739983081837,0.305656,96366.0,96365.0,0.0494]
[1739983082580,0.43247045,96366.0,96365.0,0.0494]
[1739983082808,0.43247045,96366.0,96362.0,0.0772]
[1739983082809,0.305661,96363.0,96362.0,0.0772]
[1739983083014,0.43527494,96363.0,96362.0,0.0772]
[1739983083389,0.305674,96355.0,96354.0,0.1259]
[1739983084195,0.45862598,96355.0,96354.0,0.1259]
[1739983084956,0.155684,96349.0,96348.0,0.0902]
[1739983085365,0.305684,96349.0,96348.0,0.0762]
[1739983085545,0.35613233,96349.0,96348.0,0.0902]
[1739983085718,0.35613233,96349.0,96348.0,0.0762]
[1739983085906,0.35613233,96349.0,96348.0,0.0902]
[1739983086101,0.35613233,96349.0,96348.0,0.0782]
[1739983086432,0.35613233,96349.0,96348.0,0.0786258]
[1739983086631,0.35613233,96349.0,96348.0,0.0004258]
[1739983086831,0.45002236,96349.0,96348.0,0.0004258]
[1739983087489,0.45202236,96349.0,96348.0,0.0004258]
[1739983087892,0.45302236,96349.0,96348.0,0.0004258]
[1739983090842,0.46101318,96349.0,96348.0,0.0004258]
[1739983091374,0.45485987,96349.0,96348.0,0.0004258]
[1739983093113,0.43544339,96349.0,96348.0,0.0004258]
[1739983093834,0.41917847,96349.0,96348.0,0.0004258]
[1739983094036,0.41118765,96349.0,96348.0,0.0004258]
[1739983094218,0.308684,96349.0,96348.0,0.0503258]
[1739983096872,0.32494919,96349.0,96348.0,0.0503258]
[1739983097682,0.32494919,96349.0,96348.0,0.1278258]
[1739983099057,0.32494919,96349.0,96348.0,0.1418258]
[1739983100252,0.32294919,96349.0,96348.0,0.1418258]
[1739983100674,0.32194919,96349.0,96348.0,0.1418258]
[1739983101094,0.32194919,96349.0,96348.0,0.1438258]
[1739983101741,0.32194919,96349.0,96348.0,0.1448258]
[1739983102143,0.32194919,96349.0,96348.0,0.1308258]
[1739983102471,0.42445284,96349.0,96348.0,0.1308258]
[1739983103253,0.42445284,96349.0,96348.0,0.1298258]
[1739983103650,0.40918765,96349.0,96348.0,0.1298258]
[1739983104444,0.40918765,96349.0,96348.0,0.1278258]
[1739983105169,0.40918765,96349.0,96348.0,0.0004258]
[1739983105435,2.55695365,96349.0,96348.0,0.0004258]
[1739983105638,2.53314065,96349.0,96348.0,0.0004258]
[1739983105965,2.53414065,96349.0,96348.0,0.0004258]
[1739983106214,2.34057665,96349.0,96348.0,0.0004258]
[1739983106441,2.30456665,96349.0,96348.0,0.0004258]
[1739983106648,1.69719565,96349.0,96348.0,0.0004258]
[1739983106856,1.25224165,96349.0,96348.0,0.0004258]
[1739983107054,1.14813965,96349.0,96348.0,0.0004258]
[1739983107263,0.98189365,96349.0,96348.0,0.0004258]
[1739983107559,0.55262565,96349.0,96348.0,0.0004258]
[1739983107746,0.56889108,96349.0,96348.0,0.0004258]
[1739983109093,0.56789108,96349.0,96348.0,0.0004258]
[1739983110202,0.46538743,96349.0,96348.0,0.0004258]
[1739983111141,0.43842743,96349.0,96348.0,0.0004258]
[1739983112047,0.5986956,96349.0,96348.0,0.0004258]
[1739983112247,0.54093108,96349.0,96348.0,0.0004258]
[1739983113214,0.305698,96340.0,96339.0,0.02352252]
[1739983113358,0.305706,96335.0,96327.0,0.014]
[1739983113556,0.40820965,96335.0,96325.0,0.014]
[1739983113771,0.40820965,96335.0,96323.0,0.014]
[1739983113964,0.10250365,96335.0,96323.0,0.014]
[1739983114171,0.25820965,96335.0,96321.0,0.014]
[1739983114404,0.43189665,96335.0,96321.0,0.014]
[1739983114726,0.43189665,96335.0,96334.0,0.0024255]
[1739983115622,0.25820965,96335.0,96334.0,0.0024255]
[1739983115840,1.54776565,96335.0,96334.0,0.0024255]
[1739983116055,1.69363865,96335.0,96319.0,0.014]
[1739983116256,0.305732,96319.0,96313.0,0.0804]
[1739983116379,0.40823565,96319.0,96313.0,0.0804]
[1739983116802,0.4326724,96319.0,96313.0,0.0804]
[1739983118598,0.44894399,96319.0,96313.0,0.0804]
[1739983118799,0.97378399,96319.0,96313.0,0.0804]
[1739983119005,2.56336599,96319.0,96313.0,0.0804]
[1739983119211,2.61401499,96319.0,96313.0,0.0804]
[1739983119556,2.55933199,96319.0,96313.0,0.0804]
[1739983119764,2.55933199,96319.0,96318.0,0.0024256]
[1739983119765,2.51233199,96319.0,96318.0,0.0024256]
[1739983120122,2.39690299,96319.0,96318.0,0.0004256]
[1739983120979,2.26848358,96319.0,96318.0,0.0034256]
[1739983121154,2.17847758,96319.0,96318.0,0.0034256]
[1739983121555,2.17847758,96319.0,96318.0,0.0004256]
[1739983123391,1.11416958,96319.0,96318.0,0.0004256]
[1739983123553,0.98478558,96319.0,96318.0,0.0004256]
[1739983123751,0.59404599,96319.0,96318.0,0.0004256]
[1739983123950,0.56595699,96319.0,96318.0,0.0004256]
[1739983126623,3.04384699,96319.0,96318.0,0.0004256]
[1739983126835,0.4698946,96319.0,96318.0,0.0004256]
[1739983126978,3.0601186,96319.0,96318.0,0.0004256]
[1739983127178,2.9688156,96319.0,96318.0,0.0004256]
[1739983127390,2.6116166,96319.0,96318.0,0.0004256]
[1739983128296,2.4192246,96319.0,96318.0,0.0004256]
[1739983130641,2.2869016,96319.0,96318.0,0.0004256]
[1739983132560,2.2869016,96319.0,96318.0,6e-07]
[1739983132761,0.57239825,96319.0,96318.0,6e-07]
[1739983132991,0.30576,96302.0,96299.0,0.0474]
[1739983133166,0.40826365,96302.0,96299.0,0.0474]
[1739983133347,0.40826365,96302.0,96301.0,0.00504998]
[1739983133552,0.305769,96296.0,96295.0,0.0004258]
[1739983133777,2.53548865,96296.0,96295.0,0.0004258]
[1739983133980,2.57431865,96296.0,96295.0,0.0004258]
[1739983134202,2.52431865,96296.0,96295.0,0.0004258]
[1739983134896,2.52531865,96296.0,96295.0,0.0004258]
[1739983136173,2.54259391,96296.0,96295.0,0.0004258]
[1739983137435,2.56330917,96296.0,96295.0,0.0004258]
[1739983139449,1.45867517,96296.0,96295.0,0.0004258]
[1739983140252,0.38994417,96296.0,96295.0,0.0004258]
[1739983140544,0.42042017,96296.0,96295.0,0.0779258]
[1739983140717,0.30526317,96296.0,96295.0,0.0779258]
[1739983141309,0.99614017,96296.0,96295.0,0.0004258]
[1739983141484,2.48634817,96296.0,96295.0,0.0004258]
[1739983141750,2.61572017,96296.0,96295.0,0.0004258]
[1739983141910,2.49760982,96296.0,96295.0,8e-07]
[1739983142112,0.40776682,96296.0,96295.0,8e-07]
[1739983143438,0.3650073,96296.0,96295.0,8e-07]
[1739983143636,0.43455031,96296.0,96295.0,8e-07]
[1739983143843,0.35337091,96296.0,96295.0,0.0481008]
[1739983144163,0.33709325,96296.0,96295.0,0.0481008]
[1739983144567,0.18709325,96296.0,96295.0,0.0481008]
[1739983144704,0.18709325,96296.0,96295.0,0.0621008]
[1739983144908,0.165769,96296.0,96295.0,0.0665654]
[1739983145107,0.165769,96296.0,96295.0,0.0525654]
[1739983145350,0.165769,96296.0,96295.0,0.0621008]
[1739983145580,0.01,96296.0,96295.0,0.15759237]
[1739983145975,0.005,96296.0,96295.0,0.16205697]
[1739983146170,0.09310737,96326.0,96315.0,0.014]
[1739983146375,0.155735,96317.0,96316.0,0.01]
[1739983146703,0.30073637,96326.0,96316.0,0.01044525]
[1739983146958,0.01627239,96322.0,96321.0,0.02579157]
[1739983147137,0.155727,96322.0,96321.0,0.01979157]
[1739983147270,0.155727,96322.0,96321.0,0.02408935]
[1739983147471,0.155727,96322.0,96321.0,0.01979157]
[1739983147675,0.155727,96322.0,96321.0,0.01579157]
[1739983148106,0.155727,96322.0,96321.0,0.02008935]
[1739983148311,0.155724,96324.0,96323.0,0.01579157]
[1739983148513,0.007,96326.0,96323.0,0.01579157]
[1739983148733,0.007,96326.0,96325.0,0.01579157]
[1739983148931,0.162721,96326.0,96325.0,0.01579157]
[1739983149136,0.17818639,96326.0,96325.0,0.02008567]
[1739983149312,0.17818639,96326.0,96323.0,0.01579157]
[1739983149313,0.155724,96324.0,96323.0,0.01579157]
[1739983149510,0.15574,96314.0,96313.0,0.1288]
[1739983149766,0.15574,96314.0,96313.0,0.14889672]
[1739983149956,0.974175,96314.0,96313.0,0.05390515]
[1739983150158,0.470393,96314.0,96313.0,0.05390515]
[1739983150389,0.470393,96314.0,96313.0,0.0496]
[1739983150592,0.33121,96314.0,96313.0,0.06539157]
[1739983150844,0.15,96318.0,96313.0,0.06839157]
[1739983151025,0.15574,96314.0,96313.0,0.06839157]
[1739983151254,0.15574,96314.0,96313.0,0.07139157]
[1739983151739,0.15574,96314.0,96313.0,0.0556]
[1739983151946,0.15574,96314.0,96313.0,0.07139157]
[1739983152137,0.15574,96314.0,96313.0,0.0556]
[1739983152340,0.15574,96314.0,96313.0,0.0526]
[1739983152841,0.15574,96314.0,96313.0,0.0556]
[1739983153252,0.15574,96314.0,96313.0,0.07139157]
[1739983154208,0.15,96325.0,96313.0,0.07139157]
[1739983154393,0.15574,96314.0,96313.0,0.07139157]
[1739983155305,0.15574,96314.0,96313.0,0.06839157]
[1739983156033,0.15574,96314.0,96313.0,0.06539157]
[1739983156634,0.15574,96314.0,96313.0,0.06839157]
[1739983157991,0.15574,96314.0,96313.0,0.07139157]
[1739983160225,0.15574,96314.0,96313.0,0.07181767]
[1739983161458,0.0008522,96321.0,96318.0,0.01579157]
[1739983161698,0.155732,96319.0,96318.0,0.01579157]
[1739983161910,0.305732,96319.0,96318.0,0.01579157]
[1739983163399,0.305732,96319.0,96318.0,0.01679157]
[1739983163753,0.305732,96319.0,96318.0,0.01779157]
[1739983165356,0.0008522,96321.0,96320.0,0.01579157]
[1739983165584,0.1565812,96321.0,96320.0,0.09819157]
[1739983168278,0.0008522,96321.0,96320.0,0.09819157]
[1739983168479,0.1565812,96321.0,96320.0,0.09819157]
[1739983171914,0.1565812,96321.0,96320.0,0.01579157]
[1739983175905,0.155735,96317.0,96316.0,0.081]
[1739983176116,0.207645,96319.0,96313.0,0.0004261]
[1739983176323,0.15574,96314.0,96313.0,0.0004261]
[1739983177250,0.40824365,96314.0,96313.0,0.0014261]
[1739983177448,0.62741865,96314.0,96313.0,0.0014261]
[1739983178208,0.62741865,96314.0,96313.0,0.0004261]
[1739983179991,0.64782174,96314.0,96313.0,0.0004261]
[1739983180360,0.59333774,96314.0,96313.0,0.0004261]
[1739983180497,0.55943774,96314.0,96313.0,0.0004261]
[1739983181334,0.45693409,96314.0,96313.0,0.0004261]
[1739983182023,0.55943774,96314.0,96313.0,0.0004261]
[1739983183507,0.42864674,96314.0,96313.0,0.0004261]
[1739983183923,2.41652374,96314.0,96313.0,0.0004261]
[1739983184322,1.77996274,96314.0,96313.0,0.0004261]
[1739983184470,0.42864674,96314.0,96313.0,0.0004261]
[1739983184898,0.42864674,96314.0,96313.0,0.0773261]
[1739983184899,0.30574,96314.0,96313.0,0.0773261]
[1739983185294,0.30574,96314.0,96313.0,0.09311767]
[1739983190554,0.30574,96314.0,96313.0,0.01621767]
[1739983191730,0.22392312,96316.0,96313.0,0.01621767]
[1739983191925,0.15574,96314.0,96313.0,0.01621767]
[1739983194689,0.15574,96314.0,96313.0,0.09391767]
[1739983199230,0.17629804,96314.0,96313.0,0.09391767]
[1739983200479,0.17629804,96314.0,96313.0,0.0004261]
[1739983200480,0.32629804,96314.0,96313.0,0.0004261]
[1739983200639,0.42880169,96314.0,96313.0,0.0004261]
[1739983201913,0.32629804,96314.0,96313.0,0.0004261]
[1739983202331,0.32629804,96314.0,96313.0,0.0779261]
[1739983202935,0.30574,96314.0,96313.0,0.0779261]
[1739983204498,0.15574,96314.0,96313.0,0.09371767]
[1739983205626,0.15574,96314.0,96313.0,0.09471767]
[1739983206448,0.15774,96314.0,96313.0,0.09471767]
[1739983206623,0.15574,96314.0,96313.0,0.09471767]
[1739983206989,0.15574,96314.0,96313.0,0.09571767]
[1739983209435,0.156591,96314.0,96313.0,0.09571767]
[1739983210708,0.306591,96314.0,96313.0,0.0799261]
[1739983210978,0.306591,96314.0,96313.0,0.09571767]
[1739983212113,0.22392352,96316.0,96313.0,0.09571767]
[1739983212330,0.15574,96314.0,96313.0,0.09571767]
[1739983213986,0.15574,96314.0,96313.0,0.09471767]
[1739983214195,0.30574,96314.0,96313.0,0.09471767]
[1739983215077,0.30574,96314.0,96313.0,0.09571767]
[1739983215663,0.215444,96337.0,96320.0,0.0458]
[1739983215664,0.207635,96323.0,96320.0,0.0458]
[1739983215866,0.3065812,96321.0,96320.0,0.0458]
[1739983216463,0.15574,96314.0,96313.0,0.0799261]
[1739983216667,0.15574,96314.0,96313.0,0.09471767]
[1739983217066,0.15574,96314.0,96313.0,0.09371767]
[1739983217492,0.0038522,96321.0,96313.0,0.09371767]
[1739983217493,0.155739,96315.0,96313.0,0.09371767]
[1739983217688,0.15574,96314.0,96313.0,0.09371767]
[1739983218148,0.15574,96314.0,96313.0,0.09471767]
[1739983218525,0.15574,96314.0,96313.0,0.09571767]
[1739983219775,0.01712351,96321.0,96313.0,0.09571767]
[1739983219979,0.305736,96317.0,96316.0,0.01579157]
[1739983221294,0.155738,96315.0,96314.0,0.01579157]
[1739983221494,0.357649,96317.0,96313.0,0.0004261]
[1739983221495,0.15574,96314.0,96313.0,0.0004261]
[1739983221694,0.40909465,96314.0,96313.0,0.0004261]
[1739983222234,3.23594165,96314.0,96313.0,1e-07]
[1739983222435,0.48689465,96314.0,96313.0,1e-07]
[1739983222659,0.48689465,96314.0,96313.0,0.0010001]
[1739983223198,2.78737365,96314.0,96313.0,0.0010001]
[1739983223538,2.60909965,96314.0,96313.0,0.0010001]
[1739983223757,2.54649765,96314.0,96313.0,0.0020001]
[1739983223960,2.54649765,96314.0,96313.0,1e-07]
[1739983224162,0.48689465,96314.0,96313.0,1e-07]
[1739983224322,0.49589465,96314.0,96313.0,1e-07]
[1739983224523,0.41809465,96314.0,96313.0,1e-07]
[1739983228860,0.4343692,96314.0,96313.0,1e-07]
[1739983230102,0.5160692,96314.0,96313.0,1e-07]
[1739983231168,0.5160692,96314.0,96295.0,8e-07]
[1739983231169,0.305769,96296.0,96295.0,8e-07]
[1739983231359,0.40827265,96296.0,96295.0,8e-07]
[1739983231921,0.42454915,96296.0,96295.0,8e-07]
[1739983233197,0.44516057,96296.0,96295.0,8e-07]
[1739983233415,0.30133176,96296.0,96295.0,8e-07]
[1739983233617,0.44082426,96296.0,96295.0,8e-07]
[1739983234031,0.44382426,96296.0,96295.0,8e-07]
[1739983234390,0.44982426,96296.0,96295.0,8e-07]
[1739983235460,0.38023471,96296.0,96295.0,8e-07]
[1739983236980,0.305789,96284.0,96274.0,0.01579157]
[1739983237200,1.86148165,96284.0,96274.0,0.01579157]
[1739983237403,0.155803,96275.0,96274.0,0.01579157]
[1739983238173,0.17208189,96275.0,96274.0,0.01579157]
[1739983239137,0.17308189,96275.0,96274.0,0.01579157]
[1739983239961,0.13296825,96277.0,96274.0,0.01579157]
[1739983240173,0.155803,96275.0,96274.0,0.01579157]
[1739983240666,0.25830665,96275.0,96274.0,0.01579157]
[1739983241029,0.27750868,96275.0,96274.0,0.01579157]
[1739983242186,0.19553467,96275.0,96274.0,0.01579157]
[1739983243577,0.19653467,96275.0,96274.0,0.01579157]
[1739983245468,0.34653467,96275.0,96274.0,0.01621707]
[1739983245672,0.44903832,96275.0,96274.0,0.0004255]
[1739983245877,2.13009128,96275.0,96274.0,0.0004255]
[1739983246083,3.05049328,96275.0,96274.0,0.0004255]
[1739983246308,3.81791728,96275.0,96274.0,0.0004255]
[1739983246508,3.79545128,96275.0,96274.0,0.0004255]
[1739983246740,3.64005294,96275.0,96274.0,0.0004255]
[1739983246942,3.58259494,96275.0,96274.0,0.0004255]
[1739983247145,3.44737994,96275.0,96274.0,0.0004255]
[1739983247552,3.45537994,96275.0,96274.0,0.0004255]
[1739983247768,3.45237994,96275.0,96274.0,0.0004255]
[1739983248023,3.46692079,96275.0,96274.0,0.0004255]
[1739983248226,3.22367879,96275.0,96274.0,0.0004255]
[1739983248428,3.12338083,96275.0,96274.0,0.0004255]
[1739983248632,2.94191583,96275.0,96274.0,0.0004255]
[1739983248862,2.93691583,96275.0,96274.0,0.0004255]
[1739983249074,2.49712883,96275.0,96274.0,0.0004255]
[1739983249280,2.43536383,96275.0,96274.0,0.0004255]
[1739983249484,1.26461383,96275.0,96274.0,0.0004255]
[1739983250409,1.16371383,96275.0,96274.0,0.0004255]
[1739983250923,1.14362483,96275.0,96274.0,0.0004255]
[1739983253790,0.87023537,96275.0,96274.0,0.0004255]
[1739983254159,1.02603837,96275.0,96274.0,0.0004255]
[1739983254957,1.07334698,96275.0,96274.0,0.0004255]
[1739983257005,1.08962826,96275.0,96274.0,0.0004255]
[1739983257447,0.92391584,96275.0,96274.0,0.0004255]
[1739983259268,0.93845669,96275.0,96274.0,5e-07]
[1739983259476,0.31201185,96275.0,96274.0,5e-07]
[1739983259792,0.46201185,96275.0,96274.0,5e-07]
[1739983260652,0.15584,96252.0,96251.0,0.0004258]
[1739983261072,0.38515913,96252.0,96251.0,0.00564708]
[1739983261405,1.949065,96252.0,96251.0,0.00564708]
[1739983261556,1.714596,96252.0,96251.0,0.0004258]
[1739983261763,1.27899,96252.0,96251.0,0.0004258]
[1739983261965,1.207568,96252.0,96251.0,0.0004258]